[Event "9th RTU Rapid 2019"]
[Site "Riga"]
[Date "2019.08.04"]
[Round "5.5"]
[White "Wagner, Dennis"]
[Black "Ioannidis, Evgenios"]
[Result "0-1"]
[WhiteElo "2473"]
[BlackElo "2134"]
[PlyCount "84"]
[EventDate "2019.08.05"]
[EventType "swiss"]
[EventCountry "LAT"]
[TimeControl "5400+30"]
[WhiteClock "0:00:28"]
[BlackClock "0:00:10"]

1. d4 {[%emt 1:15:23]} d5 {[%emt 1:15:30]} 2. c4 {[%emt 0:00:27]} c6 {[%emt 0:00:27]} 3. Nf3 {[%emt 0:00:27]} Nf6 {[%emt 0:00:27]} 4. g3 {[%emt 0:00:28]} dxc4 {[%emt 0:00:39]} 5. Bg2 {[%emt 0:00:26]} Nbd7 {[%emt 0:00:32]} 6. a4 {[%emt 0:00:58]} e6 {[%emt 0:00:35]} 7. O-O {[%emt 0:00:28]} a5 {[%emt 0:01:22]} 8. Qc2 {[%emt 0:02:34]} Nb6 {[%emt 0:02:46]} 9. e4 {[%emt 0:01:30]} Bb4 {[%emt 0:00:52]} 10. Rd1 {[%emt 0:00:35]} O-O {[%emt 0:00:28]} 11. Bf4 {[%emt 0:02:03]} Qe7 {[%emt 0:01:43]} 12. Nbd2 {[%emt 0:00:57]} Rd8 {[%emt 0:01:11]} 13. Bg5 {[%emt 0:04:28]} h6 {[%emt 0:00:27]} 14. Bh4 {[%emt 0:00:26]} g5 {[%emt 0:02:56]} 15. Nxg5 {[%emt 0:00:26]} hxg5 {[%emt 0:00:26]} 16. Bxg5 {[%emt 0:00:26]} e5 {[%emt 0:00:26]} 17. dxe5 {[%emt 0:00:25]} Qxe5 {[%emt 0:00:48]} 18. Nf3 {[%emt 0:00:57]} Rxd1+ {[%emt 0:02:10]} 19. Rxd1 {[%emt 0:00:26]} Qxe4 {[%emt 0:00:47]} 20. Rd8+ {[%emt 0:00:27]} Bf8 {[%emt 0:00:27]} 21. Qc1 {[%emt 0:02:19]} Bg4 {[%emt 0:01:46]} 22. Rd4 {[%emt 0:02:37]} Qf5 {[%emt 0:03:41]} 23. Rf4 {[%emt 0:01:27]} Nfd5 {[%emt 0:00:27]} 24. Rxf5 {[%emt 0:00:28]} Bxf5 {[%emt 0:00:26]} 25. Nh4 {[%emt 0:00:33]} Bd3 {[%emt 0:00:29]} 26. Bh6 {[%emt 0:00:36]} Bxh6 {[%emt 0:00:34]} 27. Qxh6 {[%emt 0:00:26]} Re8 {[%emt 0:00:26]} 28. h3 {[%emt 0:00:48]} Nxa4 {[%emt 0:00:29]} 29. Bf3 {[%emt 0:00:32]} Nxb2 {[%emt 0:00:39]} 30. Bg4 {[%emt 0:00:27]} Re1+ {[%emt 0:00:49]} 31. Kh2 {[%emt 0:00:26]} Ne7 {[%emt 0:00:26]} 32. Qd2 {[%emt 0:00:48]} Rb1 {[%emt 0:00:34]} 33. Qxa5 {[%emt 0:00:29]} Ng6 {[%emt 0:00:35]} 34. Nf3 {[%emt 0:00:34]} Nd1 {[%emt 0:00:29]} 35. Qd8+ {[%emt 0:00:27]} Kg7 {[%emt 0:00:30]} 36. h4 {[%emt 0:00:27]} Nxf2 {[%emt 0:00:31]} 37. Qd4+ {[%emt 0:00:26]} Kg8 {[%emt 0:00:29]} 38. Qxf2 {[%emt 0:00:02]} c3 39. Qd4 {[%emt 0:01:13]} c2 {[%emt 0:00:52]} 40. Qd8+ {[%emt 0:00:26]} Kg7 {[%emt 0:00:25]} 41. Qd4+ {[%emt 0:00:26]} Kg8 {[%emt 0:00:26]} 42. Qd8+ {[%emt 0:00:36]} Nf8 {[%emt 0:00:18]} 0-1

[Event "9th RTU Rapid 2019"]
[Site "Riga"]
[Date "2019.08.04"]
[Round "5.6"]
[White "Evchin, Maxim"]
[Black "Krivonosov, Oleg"]
[Result "1/2-1/2"]
[WhiteElo "2269"]
[BlackElo "2445"]
[PlyCount "96"]
[EventDate "2019.08.05"]
[EventType "swiss"]
[EventCountry "LAT"]
[TimeControl "5400+30"]
[WhiteClock "0:06:30"]
[BlackClock "0:00:55"]

1. d4 {[%emt 1:15:23]} d5 {[%emt 1:15:22]} 2. c4 {[%emt 0:00:27]} e6 {[%emt 0:00:26]} 3. Nc3 {[%emt 0:00:41]} Be7 {[%emt 0:00:27]} 4. Nf3 {[%emt 0:00:48]} Nf6 {[%emt 0:00:26]} 5. g3 {[%emt 0:00:29]} O-O {[%emt 0:00:29]} 6. Bg2 {[%emt 0:00:27]} c6 {[%emt 0:00:26]} 7. O-O {[%emt 0:00:43]} Nbd7 {[%emt 0:00:31]} 8. Qd3 {[%emt 0:00:39]} b6 {[%emt 0:00:29]} 9. e4 {[%emt 0:00:31]} Bb7 {[%emt 0:00:49]} 10. cxd5 {[%emt 0:00:42]} cxd5 {[%emt 0:00:28]} 11. e5 {[%emt 0:00:34]} Ne4 {[%emt 0:00:27]} 12. Be3 {[%emt 0:00:57]} Rc8 {[%emt 0:00:38]} 13. Rfc1 {[%emt 0:00:41]} Nxc3 {[%emt 0:00:34]} 14. Rxc3 {[%emt 0:00:29]} Rxc3 {[%emt 0:00:27]} 15. Qxc3 {[%emt 0:00:32]} Qb8 {[%emt 0:00:32]} 16. Bf1 {[%emt 0:01:29]} Rc8 {[%emt 0:00:32]} 17. Qd2 {[%emt 0:01:09]} h6 {[%emt 0:00:44]} 18. Bd3 {[%emt 0:00:36]} Bf8 {[%emt 0:00:40]} 19. Qe2 {[%emt 0:00:53]} Qc7 {[%emt 0:00:43]} 20. Nh4 {[%emt 0:00:40]} Be7 {[%emt 0:01:30]} 21. Qg4 {[%emt 0:00:54]} Kf8 {[%emt 0:00:41]} 22. f4 {[%emt 0:01:23]} Bxh4 {[%emt 0:00:34]} 23. Qxh4 {[%emt 0:01:55]} Nb8 {[%emt 0:00:45]} 24. f5 {[%emt 0:00:48]} Ba6 {[%emt 0:00:54]} 25. Bxa6 Nxa6 {[%emt 0:00:26]} 26. f6 {[%emt 0:01:19]} gxf6 {[%emt 0:01:37]} 27. Qxh6+ {[%emt 0:01:09]} Ke8 {[%emt 0:00:58]} 28. Qh8+ {[%emt 0:00:55]} Kd7 {[%emt 0:00:35]} 29. Qxf6 {[%emt 0:00:27]} Ke8 {[%emt 0:00:27]} 30. Rf1 {[%emt 0:00:31]} Qe7 {[%emt 0:00:45]} 31. Bg5 {[%emt 0:01:57]} Qxf6 {[%emt 0:00:32]} 32. Bxf6 {[%emt 0:00:26]} Rc2 {[%emt 0:01:10]} 33. h4 {[%emt 0:00:41]} Kf8 {[%emt 0:00:27]} 34. h5 {[%emt 0:01:00]} Kg8 {[%emt 0:00:59]} 35. Rf4 {[%emt 0:01:56]} Kh7 {[%emt 0:00:52]} 36. Be7 {[%emt 0:01:20]} Kg7 {[%emt 0:00:55]} 37. Rf2 {[%emt 0:00:30]} Rc4 {[%emt 0:00:54]} 38. Rd2 {[%emt 0:00:28]} Nb8 {[%emt 0:00:44]} 39. b3 {[%emt 0:00:48]} Rc3 {[%emt 0:01:19]} 40. Kf2 {[%emt 0:00:27]} Nc6 {[%emt 0:00:36]} 41. Bg5 {[%emt 0:00:32]} Nb4 {[%emt 0:00:42]} 42. Be3 {[%emt 0:00:46]} Nc2 {[%emt 0:00:54]} 43. Bf4 {[%emt 0:00:26]} Nb4 {[%emt 0:00:36]} 44. Ke2 {[%emt 0:00:28]} Rc1 {[%emt 0:00:41]} 45. Rd1 {[%emt 0:00:59]} Rc2+ {[%emt 0:00:29]} 46. Rd2 {[%emt 0:00:26]} Rc1 {[%emt 0:00:26]} 47. Rd1 {[%emt 0:01:18]} Rc2+ {[%emt 0:00:26]} 48. Rd2 {[%emt 0:00:26]} Rc1 {[%emt 0:00:26]} 1/2-1/2

[Event "9th RTU Rapid 2019"]
[Site "Riga"]
[Date "2019.08.04"]
[Round "5.7"]
[White "Gukesh D"]
[Black "Miedema, David"]
[Result "1-0"]
[WhiteElo "1683"]
[BlackElo "2313"]
[PlyCount "49"]
[EventDate "2019.08.05"]
[EventType "swiss"]
[EventCountry "LAT"]
[TimeControl "5400+30"]
[WhiteClock "0:07:37"]
[BlackClock "0:06:18"]

1. c4 {[%emt 1:15:22]} e5 {[%emt 1:15:33]} 2. Nc3 {[%emt 0:00:28]} Nc6 {[%emt 0:00:33]} 3. g3 {[%emt 0:00:29]} f5 {[%emt 0:00:27]} 4. Bg2 {[%emt 0:00:27]} Nf6 {[%emt 0:00:26]} 5. e3 {[%emt 0:00:34]} e4 {[%emt 0:00:49]} 6. d3 {[%emt 0:00:57]} Bb4 {[%emt 0:00:28]} 7. Nge2 {[%emt 0:00:31]} d5 {[%emt 0:00:38]} 8. cxd5 {[%emt 0:01:21]} Qxd5 {[%emt 0:00:33]} 9. Nf4 {[%emt 0:02:18]} Qe5 {[%emt 0:01:28]} 10. O-O {[%emt 0:00:54]} Bxc3 {[%emt 0:01:15]} 11. bxc3 {[%emt 0:00:28]} Qxc3 {[%emt 0:00:26]} 12. Bd2 {[%emt 0:00:55]} Qe5 {[%emt 0:00:37]} 13. Qb3 {[%emt 0:01:07]} Qe7 {[%emt 0:03:06]} 14. Bc3 {[%emt 0:01:01]} Qf7 {[%emt 0:00:32]} 15. Bxf6 {[%emt 0:01:17]} Qxb3 {[%emt 0:00:28]} 16. axb3 {[%emt 0:00:27]} gxf6 {[%emt 0:00:27]} 17. Nd5 {[%emt 0:00:56]} Kf7 {[%emt 0:00:28]} 18. Nxc7 {[%emt 0:00:37]} Rb8 {[%emt 0:00:27]} 19. dxe4 {[%emt 0:00:27]} fxe4 {[%emt 0:01:33]} 20. Bxe4 {[%emt 0:00:37]} Bh3 {[%emt 0:00:27]} 21. Rfc1 {[%emt 0:00:51]} Rhc8 {[%emt 0:00:40]} 22. Nb5 {[%emt 0:02:05]} Ke6 {[%emt 0:00:43]} 23. f3 {[%emt 0:01:10]} Bf5 {[%emt 0:01:52]} 24. Bxf5+ {[%emt 0:00:27]} Kxf5 {[%emt 0:00:27]} 25. Nd6+ {[%emt 0:00:26]} 1-0

[Event "9th RTU Rapid 2019"]
[Site "Riga"]
[Date "2019.08.04"]
[Round "5.8"]
[White "Martinkus, Rolandas"]
[Black "Nevednichy, Vladislav"]
[Result "0-1"]
[WhiteElo "2155"]
[BlackElo "2495"]
[PlyCount "70"]
[EventDate "2019.08.05"]
[EventType "swiss"]
[EventCountry "LAT"]
[TimeControl "5400+30"]
[WhiteClock "0:03:39"]
[BlackClock "0:01:51"]

1. Nf3 {[%emt 1:15:23]} g6 {[%emt 1:15:22]} 2. c4 {[%emt 0:00:33]} Bg7 {[%emt 0:00:29]} 3. Nc3 {[%emt 0:00:26]} d6 {[%emt 0:00:32]} 4. d4 {[%emt 0:00:32]} Nf6 {[%emt 0:00:27]} 5. h3 {[%emt 0:00:29]} O-O {[%emt 0:00:29]} 6. e4 {[%emt 0:00:26]} Na6 {[%emt 0:00:40]} 7. g4 {[%emt 0:00:45]} c5 {[%emt 0:01:47]} 8. g5 {[%emt 0:00:31]} Nh5 {[%emt 0:01:01]} 9. d5 {[%emt 0:00:45]} Nc7 {[%emt 0:00:37]} 10. Be2 {[%emt 0:00:36]} e5 {[%emt 0:00:52]} 11. dxe6 {[%emt 0:00:44]} Nxe6 {[%emt 0:00:37]} 12. Nd5 {[%emt 0:00:27]} b5 {[%emt 0:02:13]} 13. Nh2 {[%emt 0:01:21]} Nxg5 {[%emt 0:03:09]} 14. Bxh5 {[%emt 0:00:28]} Re8 {[%emt 0:00:39]} 15. Bf3 {[%emt 0:00:55]} Nxe4 {[%emt 0:00:41]} 16. Bxe4 {[%emt 0:00:47]} Rxe4+ {[%emt 0:00:26]} 17. Be3 {[%emt 0:00:27]} bxc4 {[%emt 0:00:45]} 18. Ng4 {[%emt 0:02:01]} Bb7 {[%emt 0:00:57]} 19. Rg1 {[%emt 0:00:45]} f5 {[%emt 0:00:54]} 20. Qd2 {[%emt 0:03:56]} fxg4 {[%emt 0:00:37]} 21. Rxg4 {[%emt 0:00:27]} Re5 {[%emt 0:00:47]} 22. Nc3 {[%emt 0:01:48]} d5 {[%emt 0:00:35]} 23. O-O-O {[%emt 0:00:27]} d4 {[%emt 0:00:29]} 24. Bxd4 {[%emt 0:00:27]} cxd4 {[%emt 0:00:29]} 25. Rxd4 {[%emt 0:00:26]} Qf8 {[%emt 0:00:35]} 26. f4 {[%emt 0:00:57]} Bh6 {[%emt 0:01:02]} 27. Kb1 {[%emt 0:00:40]} Rf5 {[%emt 0:00:36]} 28. Qe2 {[%emt 0:00:45]} Kh8 {[%emt 0:00:58]} 29. Rd7 {[%emt 0:00:56]} Re8 {[%emt 0:01:35]} 30. Qxc4 {[%emt 0:00:42]} Bc8 {[%emt 0:00:33]} 31. Rxa7 {[%emt 0:01:33]} Bxf4 {[%emt 0:00:32]} 32. Nd5 {[%emt 0:01:28]} Be6 {[%emt 0:00:51]} 33. Qc6 {[%emt 0:01:48]} Bxd5 {[%emt 0:00:41]} 34. Rxd5 {[%emt 0:00:26]} Re1+ {[%emt 0:00:27]} 35. Kc2 {[%emt 0:00:32]} Rc1+ {[%emt 0:00:27]} 0-1

[Event "9th RTU Rapid 2019"]
[Site "Riga"]
[Date "2019.08.04"]
[Round "5.9"]
[White "Solys, Laimutis"]
[Black "Omelja, Artem"]
[Result "0-1"]
[WhiteElo "2143"]
[BlackElo "2436"]
[PlyCount "124"]
[EventDate "2019.08.05"]
[EventType "swiss"]
[EventCountry "LAT"]
[TimeControl "5400+30"]
[WhiteClock "0:08:22"]
[BlackClock "0:00:22"]

1. e4 {[%emt 1:15:23]} e6 {[%emt 1:15:21]} 2. d4 {[%emt 0:00:31]} d5 {[%emt 0:00:26]} 3. Nc3 {[%emt 0:00:27]} Bb4 {[%emt 0:00:29]} 4. e5 {[%emt 0:00:31]} Ne7 {[%emt 0:00:32]} 5. a3 {[%emt 0:00:27]} Bxc3+ {[%emt 0:00:27]} 6. bxc3 {[%emt 0:00:27]} b6 {[%emt 0:00:35]} 7. a4 {[%emt 0:01:06]} Ba6 {[%emt 0:00:33]} 8. Bd3 {[%emt 0:01:00]} Bxd3 {[%emt 0:00:31]} 9. cxd3 {[%emt 0:00:29]} c5 {[%emt 0:00:28]} 10. Nf3 {[%emt 0:00:47]} Nd7 {[%emt 0:00:40]} 11. dxc5 {[%emt 0:00:34]} bxc5 {[%emt 0:00:39]} 12. O-O {[%emt 0:00:44]} Nc6 {[%emt 0:00:28]} 13. Re1 {[%emt 0:00:31]} h6 {[%emt 0:00:31]} 14. Ba3 {[%emt 0:00:58]} O-O {[%emt 0:00:40]} 15. d4 {[%emt 0:00:42]} Qc7 {[%emt 0:00:30]} 16. Qe2 {[%emt 0:00:59]} Na5 {[%emt 0:00:30]} 17. Nd2 {[%emt 0:00:46]} Rab8 {[%emt 0:00:42]} 18. c4 {[%emt 0:00:42]} dxc4 {[%emt 0:00:42]} 19. dxc5 {[%emt 0:01:23]} c3 {[%emt 0:01:17]} 20. Ne4 {[%emt 0:01:34]} Nb3 {[%emt 0:02:38]} 21. Rad1 {[%emt 0:00:51]} Nxe5 {[%emt 0:01:11]} 22. Nxc3 {[%emt 0:00:54]} Nc6 {[%emt 0:00:27]} 23. Nb5 {[%emt 0:00:59]} Qf4 {[%emt 0:00:26]} 24. Qe4 {[%emt 0:01:06]} Qxe4 {[%emt 0:00:36]} 25. Rxe4 {[%emt 0:00:26]} Rfd8 {[%emt 0:00:27]} 26. Nd6 {[%emt 0:00:38]} Nbd4 {[%emt 0:00:35]} 27. h3 {[%emt 0:01:29]} Rb3 {[%emt 0:00:29]} 28. Re3 {[%emt 0:00:34]} Rdb8 {[%emt 0:00:46]} 29. Rdd3 {[%emt 0:01:38]} Rb1+ {[%emt 0:01:09]} 30. Kh2 {[%emt 0:00:26]} e5 {[%emt 0:00:55]} 31. g4 {[%emt 0:00:51]} f6 {[%emt 0:00:39]} 32. Nf5 {[%emt 0:01:33]} Nxf5 {[%emt 0:00:37]} 33. gxf5 {[%emt 0:00:26]} Nd4 {[%emt 0:00:26]} 34. Rc3 {[%emt 0:01:01]} Nxf5 {[%emt 0:00:34]} 35. Red3 {[%emt 0:00:30]} Rc8 {[%emt 0:00:29]} 36. Rd7 {[%emt 0:00:33]} a6 {[%emt 0:01:08]} 37. c6 {[%emt 0:00:31]} Kh7 {[%emt 0:00:50]} 38. a5 {[%emt 0:01:23]} Kg6 {[%emt 0:00:39]} 39. c7 {[%emt 0:00:32]} Rb7 {[%emt 0:00:26]} 40. Rc1 {[%emt 0:00:28]} Kh5 {[%emt 0:00:37]} 41. Rc6 {[%emt 0:00:34]} Nd4 {[%emt 0:00:27]} 42. Rc4 {[%emt 0:01:14]} Nb5 {[%emt 0:00:44]} 43. Rxg7 {[%emt 0:01:43]} Rcxc7 {[%emt 0:00:33]} 44. Rcxc7 {[%emt 0:00:35]} Rxc7 {[%emt 0:00:26]} 45. Rxc7 {[%emt 0:00:27]} Nxc7 {[%emt 0:00:28]} 46. Be7 {[%emt 0:00:33]} Nd5 {[%emt 0:00:27]} 47. Bc5 {[%emt 0:00:30]} Kg5 {[%emt 0:00:28]} 48. Kg3 {[%emt 0:00:28]} Kf5 {[%emt 0:00:28]} 49. f3 {[%emt 0:00:29]} Nf4 {[%emt 0:00:28]} 50. Bb6 {[%emt 0:00:30]} h5 {[%emt 0:00:30]} 51. Bd8 {[%emt 0:00:50]} Ng6 {[%emt 0:00:27]} 52. h4 {[%emt 0:00:44]} Ke6 {[%emt 0:00:26]} 53. Bb6 {[%emt 0:00:32]} f5 {[%emt 0:00:27]} 54. Bd8 {[%emt 0:00:29]} Kd5 {[%emt 0:00:26]} 55. Kf2 {[%emt 0:00:31]} Kd4 {[%emt 0:00:29]} 56. Bf6 {[%emt 0:00:27]} Kd3 {[%emt 0:00:28]} 57. Bd8 {[%emt 0:00:40]} e4 {[%emt 0:00:31]} 58. fxe4 {[%emt 0:00:27]} fxe4 {[%emt 0:00:25]} 59. Bg5 {[%emt 0:00:34]} Ne5 {[%emt 0:00:27]} 60. Bf4 {[%emt 0:00:39]} Nc4 {[%emt 0:00:34]} 61. Bc7 {[%emt 0:00:27]} e3+ {[%emt 0:00:27]} 62. Ke1 {[%emt 0:00:25]} Nd2 {[%emt 0:00:27]} 0-1

[Event "9th RTU Rapid 2019"]
[Site "Riga"]
[Date "2019.08.04"]
[Round "5.10"]
[White "Bulmaga, Irina"]
[Black "Smirnova, Ekaterina"]
[Result "1/2-1/2"]
[WhiteElo "2434"]
[BlackElo "2134"]
[PlyCount "160"]
[EventDate "2019.08.05"]
[EventType "swiss"]
[EventCountry "LAT"]
[TimeControl "5400+30"]
[WhiteClock "0:01:15"]
[BlackClock "0:00:36"]

1. e4 {[%emt 1:15:23]} e6 {[%emt 1:15:20]} 2. d4 {[%emt 0:00:26]} d5 {[%emt 0:00:26]} 3. Nc3 {[%emt 0:00:26]} dxe4 {[%emt 0:00:45]} 4. Nxe4 {[%emt 0:00:27]} Bd7 {[%emt 0:00:26]} 5. Nf3 {[%emt 0:00:27]} Bc6 {[%emt 0:00:28]} 6. Bd3 {[%emt 0:00:27]} Nd7 {[%emt 0:00:27]} 7. Qe2 {[%emt 0:00:26]} Ngf6 {[%emt 0:00:39]} 8. Neg5 {[%emt 0:00:27]} Bxf3 {[%emt 0:01:06]} 9. Nxf3 {[%emt 0:00:27]} Be7 {[%emt 0:01:08]} 10. Bd2 {[%emt 0:00:41]} c6 {[%emt 0:00:36]} 11. O-O-O {[%emt 0:00:38]} Qc7 {[%emt 0:00:55]} 12. Kb1 {[%emt 0:00:45]} Nd5 {[%emt 0:01:03]} 13. Ne5 {[%emt 0:01:14]} Nxe5 {[%emt 0:00:43]} 14. dxe5 {[%emt 0:00:27]} O-O-O {[%emt 0:00:52]} 15. a3 {[%emt 0:01:51]} g6 {[%emt 0:01:03]} 16. f4 {[%emt 0:01:47]} h5 {[%emt 0:00:30]} 17. c4 {[%emt 0:01:10]} Nb6 {[%emt 0:00:26]} 18. Ba5 {[%emt 0:01:15]} Rd7 {[%emt 0:00:34]} 19. Bc2 {[%emt 0:01:29]} Rxd1+ {[%emt 0:01:25]} 20. Rxd1 {[%emt 0:00:27]} Rd8 {[%emt 0:00:31]} 21. Bc3 {[%emt 0:02:44]} Rxd1+ {[%emt 0:00:43]} 22. Bxd1 {[%emt 0:00:27]} Qd7 {[%emt 0:00:45]} 23. Bc2 {[%emt 0:00:51]} Bc5 {[%emt 0:00:56]} 24. Qe4 {[%emt 0:01:14]} Kb8 {[%emt 0:01:51]} 25. g3 {[%emt 0:00:31]} Qd8 {[%emt 0:03:05]} 26. h3 {[%emt 0:00:38]} Kc8 {[%emt 0:01:00]} 27. b4 {[%emt 0:01:23]} Bf8 {[%emt 0:00:30]} 28. Qd3 {[%emt 0:00:47]} Qxd3 {[%emt 0:00:32]} 29. Bxd3 {[%emt 0:00:26]} Bh6 {[%emt 0:00:42]} 30. Bd2 {[%emt 0:00:27]} Nd7 {[%emt 0:00:32]} 31. Kc2 {[%emt 0:00:34]} c5 {[%emt 0:01:21]} 32. Be4 {[%emt 0:00:34]} Kc7 {[%emt 0:00:50]} 33. Kd3 {[%emt 0:00:28]} b6 {[%emt 0:00:45]} 34. b5 {[%emt 0:00:53]} Bg7 {[%emt 0:00:41]} 35. Bc3 {[%emt 0:00:57]} Bh6 {[%emt 0:00:36]} 36. Ke3 {[%emt 0:00:38]} Kd8 {[%emt 0:00:39]} 37. Kf3 {[%emt 0:00:31]} Ke7 {[%emt 0:00:34]} 38. Bc6 {[%emt 0:00:48]} Nb8 {[%emt 0:00:41]} 39. Bb7 {[%emt 0:00:26]} Nd7 {[%emt 0:00:30]} 40. a4 {[%emt 0:00:39]} Kd8 {[%emt 0:01:13]} 41. g4 {[%emt 0:00:29]} hxg4+ {[%emt 0:00:26]} 42. hxg4 {[%emt 0:00:29]} Kc7 {[%emt 0:00:36]} 43. Bc6 {[%emt 0:00:31]} Kd8 {[%emt 0:01:12]} 44. Ke4 {[%emt 0:00:41]} Nb8 {[%emt 0:00:34]} 45. Ba8 {[%emt 0:00:27]} a5 {[%emt 0:00:47]} 46. Kf3 {[%emt 0:00:58]} Ke7 {[%emt 0:00:34]} 47. Be4 {[%emt 0:00:46]} Bg7 {[%emt 0:00:38]} 48. Be1 {[%emt 0:00:30]} g5 {[%emt 0:00:48]} 49. fxg5 {[%emt 0:01:00]} Nd7 {[%emt 0:00:31]} 50. Bg3 {[%emt 0:01:56]} Bxe5 {[%emt 0:00:41]} 51. Bh4 {[%emt 0:00:36]} Kf8 {[%emt 0:00:42]} 52. Bc6 {[%emt 0:00:26]} Nb8 {[%emt 0:00:32]} 53. Ke4 {[%emt 0:00:26]} Bc7 {[%emt 0:00:27]} 54. Be1 {[%emt 0:00:40]} Nxc6 {[%emt 0:00:29]} 55. bxc6 {[%emt 0:00:26]} Ke7 {[%emt 0:00:26]} 56. Bc3 {[%emt 0:00:29]} Kd6 {[%emt 0:00:37]} 57. Be5+ {[%emt 0:00:27]} Kxc6 {[%emt 0:00:26]} 58. Bxc7 {[%emt 0:00:34]} Kxc7 {[%emt 0:00:26]} 59. Ke5 {[%emt 0:00:26]} Kd7 {[%emt 0:00:26]} 60. Kf6 {[%emt 0:00:27]} b5 {[%emt 0:00:26]} 61. axb5 {[%emt 0:00:50]} a4 {[%emt 0:00:26]} 62. Kxf7 {[%emt 0:00:30]} a3 {[%emt 0:00:25]} 63. g6 {[%emt 0:00:26]} a2 {[%emt 0:00:26]} 64. g7 {[%emt 0:00:26]} a1=Q {[%emt 0:00:26]} 65. g8=Q {[%emt 0:00:27]} Qf1+ {[%emt 0:00:34]} 66. Kg7 {[%emt 0:00:35]} Qa1+ {[%emt 0:00:31]} 67. Kf8 {[%emt 0:00:38]} Qa8+ {[%emt 0:00:30]} 68. Kg7 {[%emt 0:00:26]} Qa1+ {[%emt 0:00:27]} 69. Kh6 {[%emt 0:00:43]} Qh1+ {[%emt 0:00:30]} 70. Kg5 {[%emt 0:00:32]} Qc1+ {[%emt 0:00:27]} 71. Kg6 {[%emt 0:00:30]} Qb1+ {[%emt 0:00:31]} 72. Kh6 {[%emt 0:00:31]} Qh1+ {[%emt 0:00:26]} 73. Kg5 {[%emt 0:00:27]} Qc1+ {[%emt 0:00:27]} 74. Kh4 {[%emt 0:00:26]} Qh6+ {[%emt 0:00:30]} 75. Kg3 {[%emt 0:00:26]} Qe3+ {[%emt 0:00:25]} 76. Kh4 {[%emt 0:00:26]} Qh6+ {[%emt 0:00:26]} 77. Kg3 {[%emt 0:00:26]} Qe3+ {[%emt 0:00:26]} 78. Kg2 {[%emt 0:00:25]} Qe2+ {[%emt 0:00:27]} 79. Kh3 {[%emt 0:00:26]} Qe3+ {[%emt 0:00:26]} 80. Kh4 {[%emt 0:00:28]} Qh6+ {[%emt 0:00:26]} 1/2-1/2

[Event "9th RTU Rapid 2019"]
[Site "Riga"]
[Date "2019.08.04"]
[Round "5.11"]
[White "Galchenko, Matvey"]
[Black "Rudovskii, Filipp"]
[Result "1-0"]
[WhiteElo "2360"]
[BlackElo "2127"]
[PlyCount "83"]
[EventDate "2019.08.05"]
[EventType "swiss"]
[EventCountry "LAT"]
[TimeControl "5400+30"]
[WhiteClock "0:00:08"]
[BlackClock "0:02:29"]

1. e4 {[%emt 1:15:32]} c5 {[%emt 1:15:27]} 2. a3 {[%emt 0:00:30]} g6 {[%emt 0:00:30]} 3. b4 {[%emt 0:00:30]} Bg7 {[%emt 0:00:34]} 4. Nc3 {[%emt 0:00:30]} Nf6 {[%emt 0:00:42]} 5. Rb1 {[%emt 0:00:30]} d6 {[%emt 0:00:52]} 6. g3 {[%emt 0:01:17]} Nc6 {[%emt 0:00:57]} 7. Bg2 {[%emt 0:00:30]} Nd4 {[%emt 0:01:27]} 8. h3 {[%emt 0:00:42]} O-O {[%emt 0:04:10]} 9. Nge2 {[%emt 0:00:30]} e5 {[%emt 0:01:24]} 10. O-O {[%emt 0:01:11]} b6 {[%emt 0:00:47]} 11. d3 {[%emt 0:00:33]} Bb7 {[%emt 0:02:50]} 12. bxc5 {[%emt 0:01:43]} dxc5 {[%emt 0:00:30]} 13. f4 {[%emt 0:00:32]} Nd7 {[%emt 0:00:30]} 14. f5 {[%emt 0:00:45]} gxf5 {[%emt 0:00:54]} 15. exf5 {[%emt 0:00:30]} Bxg2 {[%emt 0:00:30]} 16. Kxg2 {[%emt 0:00:30]} f6 {[%emt 0:01:53]} 17. Ne4 {[%emt 0:00:36]} Qc7 {[%emt 0:00:31]} 18. Ng1 {[%emt 0:01:14]} c4 {[%emt 0:01:12]} 19. c3 {[%emt 0:01:52]} Nb3 {[%emt 0:00:45]} 20. dxc4 {[%emt 0:03:49]} Ndc5 {[%emt 0:02:39]} 21. Rxb3 {[%emt 0:00:36]} Rad8 {[%emt 0:00:30]} 22. Qc2 {[%emt 0:00:45]} Qc6 {[%emt 0:00:30]} 23. Re1 {[%emt 0:00:32]} Nd3 {[%emt 0:00:35]} 24. Re2 {[%emt 0:00:50]} Qxc4 {[%emt 0:00:30]} 25. Rb1 {[%emt 0:00:49]} Nxc1 {[%emt 0:00:55]} 26. Rxc1 {[%emt 0:00:30]} Rd3 {[%emt 0:00:30]} 27. Qa2 {[%emt 0:00:32]} Rc8 {[%emt 0:00:30]} 28. Qxc4+ {[%emt 0:00:30]} Rxc4 {[%emt 0:00:30]} 29. Rd2 {[%emt 0:00:46]} Rxd2+ {[%emt 0:00:30]} 30. Nxd2 {[%emt 0:00:30]} Ra4 {[%emt 0:00:30]} 31. Nb1 {[%emt 0:00:32]} Bf8 {[%emt 0:00:30]} 32. Rc2 {[%emt 0:00:30]} Re4 {[%emt 0:00:39]} 33. Nf3 {[%emt 0:00:36]} Bc5 {[%emt 0:00:34]} 34. g4 {[%emt 0:00:49]} Re3 {[%emt 0:00:30]} 35. Rd2 {[%emt 0:00:57]} e4 {[%emt 0:00:30]} 36. Nd4 {[%emt 0:00:56]} Re1 {[%emt 0:00:30]} 37. Rb2 {[%emt 0:00:30]} e3 {[%emt 0:00:35]} 38. Kf3 {[%emt 0:00:30]} Kf7 {[%emt 0:00:30]} 39. h4 {[%emt 0:01:19]} Ke7 {[%emt 0:00:30]} 40. Nb3 {[%emt 0:00:46]} Rf1+ {[%emt 0:00:30]} 41. Kg2 {[%emt 0:00:30]} e2 {[%emt 0:00:30]} 42. Rxe2+ {[%emt 0:00:30]} 1-0